Cogmind - Beta 17 @@@ ROGUE MODE // 2026.07.04 @ 22:34:20 Player: SilverStar Result: Destroyed by G-34 Mercenary with Small Laser Performance ------------- Evolutions (0) 0 Regions Visited (2) 400 Robots Destroyed (23) 115 Value Destroyed (655) 655 Prototype IDs (3) 60 Alien Tech Used (0) 0 Bonus (6450) 6450 TOTAL SCORE: 7680 Bonus ------- Prayed to X0-1V1 5000 Major X0-1V1 Interference 1450 Cogmind --------- Core Integrity 0/450 Matter 142/150 Energy 200/200 System Corruption 34% Temperature Cool (6) Movement Core (150) Ox2 Location -10/Subcaves Parts ------- > --- POWER (2) -------- Subdweller Power Source > --- PROPULSION (1) --- (None) > --- UTILITY (2) ------ (None) > --- WEAPON (2) ------- Maul (fused) > --- INVENTORY (5) ---- Subdweller Power Source Wheel Medium Storage Unit Improved Terrain Scanner Battle Cannon Peak State ------------ > --- POWER ------------ Ion Engine Subdweller Power Source > --- PROPULSION ------- Subdweller Monowheel > --- UTILITY ---------- Seismic Detector X0-1V1's Piety Tracker > --- WEAPON ----------- Riot Gun Barrage Gun > --- INVENTORY -------- Subdweller Power Source Wheel Medium Storage Unit Improved Terrain Scanner Battle Cannon [Rating: 25] Favorites ----------- Power Ion Engine Engine Ion Engine Propulsion Light Treads Treads Light Treads Wheel Subdweller Monowheel Utility Seismic Detector Device Seismic Detector Storage Medium Storage Unit Weapon Mining Laser Energy Gun Small Laser Ballistic Gun Heavy Battle Rifle Ballistic Cannon Light Cannon Launcher Grenade Launcher Special Weapon Mining Laser Impact Weapon Maul Build | -11 -10 -10 ------- Run | Yrd Mat Sub Slots Evolved . | . . . Power . | . . . Propulsion . | . . . Utility . | . . . Weapon . | . . . Parts Attached 24 | 8 6 10 Power 5 | 1 . 4 Engine 5 | 1 . 4 Core . | . . . Reactor . | . . . Propulsion 3 | 2 . 1 Treads 2 | 2 . . Leg . | . . . Wheel 1 | . . 1 Hover . | . . . Flight . | . . . Utility 5 | 2 3 . Device 3 | 1 2 . Storage 2 | 1 1 . Processor . | . . . Hackware . | . . . Protection . | . . . Artifact . | . . . Weapon 11 | 3 3 5 Energy Gun 3 | 1 1 1 Energy Cannon . | . . . Ballistic Gun 4 | 1 . 3 Ballistic Cannon 1 | . . 1 Launcher 1 | . 1 . Special Weapon 2 | 1 1 . Impact Weapon . | . . . Slashing Weapon . | . . . Piercing Weapon . | . . . Special Melee Weapon . | . . . Unidentified Prototypes 1 | . 1 . Parts Lost 6 | . . 6 Power 1 | . . 1 Propulsion 1 | . . 1 Utility 1 | . . 1 Weapon 3 | . . 3 Highest Loss Streak 5 | . . 5 To Critical Strikes . | . . . Average Backups 6 | 3 8 4 Power . | . 1 . Propulsion 1 | . 1 1 Utility 2 | . 3 1 Weapon 2 | 1 3 1 Tool/Special . | . . . Unused Backups 10 | . 5 5 Power 1 | . . 1 Propulsion 1 | . . 1 Utility 4 | . 3 1 Weapon 4 | . 2 2 Tool/Special . | . . . Average Slot Usage (%) 95 | . 99 92 Engine 14 | . 14 14 Treads 21 | . 27 17 Wheel 2 | . . 4 Device 21 | . 14 27 Storage 6 | . 13 . Energy Gun 3 | . 5 1 Ballistic Gun 9 | . . 16 Ballistic Cannon 3 | . . 6 Launcher 3 | . 8 . Special Weapon 7 | . 13 2 Peak Build Rating 25 | 7 19 25 Average Rating 15 | 5 7 22 On Entrance 8 | . 7 19 Avg Prop Armor Cover (%) . | . . . Naked Turns . | . . . Heaviest Build 20 | 14 20 18 Greatest Support 40 | 40 40 40 Greatest Overweight (x) . | . . . Average Overweight (x) . | . . . Largest Inventory Capacity 10 | 8 10 5 Average Capacity 6 | 7 9 5 Most Carried 10 | 7 10 5 Average Carried 6 | 3 8 4 Final Capacity 8 | 8 5 5 Final Carried 7 | 7 5 5 Class Distribution -------------------- 100% | Mutant Dominant Class ---------------- Mutant | -10/Materials Mutant | -10/Subcaves Resources | -11 -10 -10 ----------- Run | Yrd Mat Sub Matter Collected 795 | 138 278 379 Remotely . | . . . Salvage Created 809 | 99 191 519 Parts 62 | 13 17 32 Haulers Intercepted . | . . . Recyclers Shooed . | . . . Parts Field Recycled . | . . . Retrieved Matter . | . . . Parts Self-Destructed 12 | . . 12 Prevented 2 | . . 2 Parts Restored . | . . . Kills | -11 -10 -10 ------- Run | Yrd Mat Sub Combat Hostiles Destroyed 19 | . 7 12 Guns 13 | . 5 8 Cannons 3 | . 2 1 AOE 2 | . . 2 Classes Destroyed 6 | 2 2 2 Tunneler 3 | 3 . . Recycler 1 | 1 . . Swarmer 2 | . 2 . Grunt 12 | . 5 7 Artisan 1 | . . 1 Subdweller 5 | . . 5 Best Kill Streak 5 | 2 3 5 Combat Bots Only 5 | . 3 5 Max Kills in Single Turn 2 | 1 1 2 Gunslinging . | . . . Exploded 2 | . . 2 Melee . | . . . Uniques/NPCs Destroyed . | . . . Combat | -11 -10 -10 -------- Run | Yrd Mat Sub Hostile Shots Fired 118 | . 30 88 Missed 25 | . 9 16 Hits 93 | . 21 72 Projectile 93 | . 21 72 Critical Strikes 1 | . . 1 Damage Taken 1312 | . 193 1119 Core 458 | . 17 441 Absorbed by Shields . | . . . Regen/Repaired (Parts) 53 | . 53 . Core Remaining (%) 100 | 100 . . Volleys Fired 94 | 11 31 52 Largest 2 | 2 2 2 Hottest 140 | 140 140 140 Shots Fired 142 | 18 45 79 Gun 113 | 17 28 68 Cannon 9 | . . 9 Launcher . | . . . Special 20 | 1 17 2 Kinetic 80 | 6 6 68 Thermal 49 | 12 35 2 Explosive . | . . . Electromagnetic 13 | . 4 9 Robot Hit Streak 10 | 3 7 10 Robot Miss Streak 3 | 2 3 2 Penetration Max . | . . . Secondary Targets . | . . . Shots Hit Robots 72 | 11 18 43 Core Hits 31 | 5 9 17 Critical Kills . | . . . Critical Parts Destroyed 1 | . . 1 Critical Strikes 2 | . . 2 Blast 1 | . . 1 Smash 1 | . . 1 Melee Attacks 5 | . . 5 Impact 5 | . . 5 Slashing . | . . . Piercing . | . . . Sneak Attacks . | . . . Combat Hostiles . | . . . Follow-up Attacks . | . . . Damage Inflicted 1383 | 128 231 1024 Guns 1068 | 128 183 757 Cannons 68 | . . 68 Explosions 119 | . . 119 Melee 80 | . . 80 Ramming . | . . . Kinetic 738 | 49 28 661 Thermal 373 | 79 175 119 Explosive . | . . . Electromagnetic 192 | . 28 164 Impact 80 | . . 80 Slashing . | . . . Piercing . | . . . Highest Corruption 34 | . . 34 Average Corruption 23 | . . 23 Corruption Purged . | . . . Corruption Blocked . | . . . Effects 24 | . . 24 Message Errors 5 | . . 5 Matter Fused 5 | . . 5 Heat Flow Errors 2 | . . 2 Energy Discharges 3 | . . 3 Parts Rejected 1 | . . 1 Data Loss (minor) 4 | . . 4 Data Loss (major) 1 | . . 1 Misfires 2 | . . 2 Misdirections 1 | . . 1 Overload Shots . | . . . Overflow Damage 54 | . . 54 Projectiles . | . . . Explosions . | . . . Melee 54 | . . 54 Knockbacks 1 | . . 1 Impact . | . . . Kinetic 1 | . . 1 Secondary . | . . . Self-Inflicted Damage 29 | . . 29 Shots 1 | . . 1 Rammed . | . . . Targets Rammed . | . . . Kicked . | . . . Crushed . | . . . Highest Temperature 223 | 40 168 223 Average Temperature 44 | 20 44 53 Received Heat Transfer 438 | . 66 372 Siege Activations . | . . . Martial Activations . | . . . Shielding Activations . | . . . Robots Disrupted . | . . . Combat Hostiles . | . . . Robots Corrupted 1 | . . 1 Combat Hostiles 1 | . . 1 Parts Fried . | . . . Impact Corruptions 2 | . . 2 Robots Melted . | . . . Combat Hostiles . | . . . Parts Melted 1 | 1 . . Heat Transferred 675 | 175 400 100 Parts Sabotaged . | . . . Parts Stolen . | . . . Parts Stripped . | . . . Power Chain Reactions 1 | . . 1 Alert | -11 -10 -10 ------- Run | Yrd Mat Sub Maximum Alert Level . | . . . Low Security (%) 100 | 100 100 . Level 1 . | . . . Level 2 . | . . . Level 3 . | . . . Level 4 . | . . . Level 5 . | . . . High Security . | . . . Max Security . | . . . Peak Influence 98 | 5 98 . Initial . | . . . Average 11 | 1 12 . Influence Increases 422 | 20 262 140 Destroy 0b10 Robot/C 280 | . 140 140 Destroy 0b10 Robot/NC 20 | 20 . . Destroy Leader 30 | . 30 . Successful Hack 34 | . 34 . Select Force Hacks 30 | . 30 . Destroy Structure 13 | . 13 . Lose Combat Pursuer 15 | . 15 . Influence Decreases 360 | 20 262 78 Time Decay 310 | 20 262 28 Lost Part 50 | . . 50 Squads Dispatched 2 | . 2 . Investigation 1 | . 1 . Extermination . | . . . Reinforcement 1 | . 1 . Assault . | . . . Garrison . | . . . Intercept . | . . . Searches Triggered . | . . . Construction Impeded . | . . . Haulers Reinforced . | . . . Active Scanning Responses . | . . . Cargo Convoy Interrupts . | . . . Stealth | -11 -10 -10 --------- Run | Yrd Mat Sub Distress Signals 1 | . 1 . Communications Jammed . | . . . Distress Signals . | . . . Times Spotted 27 | . 10 17 Peak Tracking Total 5 | . 3 5 Tactical Retreats 1 | . 1 . Traps | -11 -10 -10 ------- Run | Yrd Mat Sub Traps Triggered 3 | . . 3 Indirectly . | . . . Trap Hack Attempts . | . . . Triggered . | . . . Disarmed . | . . . Reprogrammed . | . . . Reused . | . . . Traps Extracted . | . . . Installed . | . . . Triggered . | . . . Machines | -11 -10 -10 ---------- Run | Yrd Mat Sub Machines Disabled 1 | . 1 . Max in Single Turn 1 | . 1 . Machines Repaired . | . . . Machines Dismantled . | . . . Machines Sabotaged . | . . . Overloaded Fab Kills . | . . . Hacking | -11 -10 -10 --------- Run | Yrd Mat Sub Machines Accessed 11 | . 11 . Terminals 8 | . 8 . Fabricators . | . . . Repair Stations 1 | . 1 . Recycling Units 2 | . 2 . Scanalyzers . | . . . Garrison Access . | . . . Total Hacks 22 | . 22 . Successful 13 | . 13 . Failed 9 | . 9 . Catastrophic 2 | . 2 . Database Lockouts . | . . . Manual 13 | . 13 . Terminals 17 | . 17 . Fabricators . | . . . Repair Stations 2 | . 2 . Recycling Units 3 | . 3 . Scanalyzers . | . . . Garrison Access . | . . . Terminal Hacks 6 | . 6 . Robot Analysis 2 | . 2 . Prototype ID Bank 1 | . 1 . Branch Access Points 1 | . 1 . Emergency Access Points 1 | . 1 . Zone Layout 1 | . 1 . Fabricator Hacks . | . . . Repair Station Hacks 2 | . 2 . Scan Component 1 | . 1 . Repair 1 | . 1 . Recycling Unit Hacks 1 | . 1 . Report Inventory 1 | . 1 . Scanalyzer . | . . . Garrison Access Hacks . | . . . Unauthorized Hacks 4 | . 4 . Terminals 2 | . 2 . Track 1 | . 1 . Botnet 1 | . 1 . Fabricators . | . . . Repair Stations . | . . . Recycling Units 2 | . 2 . Reject 1 | . 1 . Tunnel 1 | . 1 . Scanalyzers . | . . . Garrison Access . | . . . Data Cores Recovered . | . . . Used . | . . . Hacking Detections 7 | . 7 . Full Trace Events . | . . . Feedback Events . | . . . Feedback Blocked . | . . . Robot Schematics Acquired . | . . . Robots Built . | . . . Authchips . | . . . Time . | . . . Total Robot Build Rating . | . . . Part Schematics Acquired . | . . . Parts Built . | . . . Authchips . | . . . Time . | . . . Total Part Build Rating . | . . . Part Studies Acquired . | . . . Parts Repaired 1 | . 1 . Time 26 | . 26 . Parts Recycled . | . . . Recycled Matter . | . . . Retrieved Matter . | . . . Retrieved Components . | . . . Parts Scanalyzed . | . . . Part Schematics Acquired . | . . . Parts Damaged . | . . . Bothacking | -11 -10 -10 ------------ Run | Yrd Mat Sub Used RIF Installer . | . . . Robots Hacked . | . . . Non-combat . | . . . Combat . | . . . Robot Hacks Applied . | . . . Relay Couplers Released . | . . . Fabnet Peak Effective % . | . . . Robots Rewired . | . . . Allies Hacked . | . . . Hacks Repelled . | . . . Allies | -11 -10 -10 -------- Run | Yrd Mat Sub Total Allies . | . . . Largest Group . | . . . Highest-Rated Group . | . . . Highest-Rated Ally . | . . . Total Orders . | . . . Ally Attacks . | . . . Total Damage . | . . . Kills . | . . . Allies Corrupted . | . . . Allies Melted . | . . . X0-1V1 Amusement Gains 70 | . 10 60 Good Acts 4 | . . 4 Bad Acts 13 | . . 13 Intel | -11 -10 -10 ------- Run | Yrd Mat Sub Active Infowar (turns) 3628 | 83 1546 1999 Seismic 3628 | 83 1546 1999 Robot Analysis Total 2 | . 2 . Derelict Logs Recovered 2 | . . 2 Drone Launches . | . . . Drone Recoveries . | . . . Exploration | -11 -10 -10 ------------- Run | Yrd Mat Sub Turns Passed 3727 | 172 1551 2004 Spaces Moved 2153 | 79 832 1242 Core 4 | 4 . . Treads 1630 | 75 832 723 Legs . | . . . Wheels 519 | . . 519 Hover . | . . . Flight . | . . . Fastest Speed 50 | 50 160 110 Average Speed 147 | 154 160 139 Slowest Speed 160 | 160 160 160 Overloaded Moves . | . . . Propulsion Burnouts . | . . . Robots Hopped . | . . . Potential Cave-ins . | . . . Cave-ins Triggered . | . . . Exploration Rate (%) 56 | 4 99 65 Regions Visited 2 Branch Regions 1 Pre-discovered Areas 2 | . 1 1 Known Exits Taken . | . . . Unknown Exits Taken 2 | 1 1 . Scrap Searched 6 | . . 6 Spaces Dug 12 | . 11 1 Terrain Destroyed 17 | . 12 5 Melee . | . . . Projectile 13 | . 12 1 AOE 4 | . . 4 Terrain Rammed . | . . . Walls Destroyed . | . . . Machines Disabled . | . . . Actions | -11 -10 -10 --------- Run | Yrd Mat Sub Total 2516 | 106 978 1432 Wait 176 | 1 80 95 Move 2151 | 78 831 1242 Hop . | . . . Pick Up 22 | 7 8 7 Fast Attach 20 | 7 5 8 Attach 10 | 1 5 4 Detach 8 | 1 3 4 Swap 5 | . 3 2 Drop 25 | . 12 13 Fire 94 | 11 31 52 Melee 5 | . . 5 Ram . | . . . Kick . | . . . Crush . | . . . Escape Stasis . | . . . Rewire . | . . . Trap . | . . . Miscellaneous . | . . . Route ------- -11/Scrapyard -10/Materials (discovered 5 exits: [*Mat x3] / *Min / [*Sub]) -10/Subcaves (discovered 3 exits: *Mat x2 / [Scr]) History --------- Turn | Location | Event 8 | -11/Scrapyard | Discovered new exit (range 15) 173 | -11/Scrapyard | Entered Materials 174 | -10/Materials | Met a group of wandering Federalists 312 | -10/Materials | Build established: Mutant 442 | -10/Materials | Discovered new exit (range 14) 487 | -10/Materials | Repaired Lgt. Treads 757 | -10/Materials | Discovered new exit (range 10) 1133 | -10/Materials | Discovered new exit (range 14) 1180 | -10/Materials | Discovered new exit (range 8) 1557 | -10/Materials | Identified exit to Mines 1675 | -10/Materials | Discovered new exit (range 12) 1692 | -10/Materials | Prayed at D.C.S.S. Altar Unit 1724 | -10/Materials | Entered Subcaves 1725 | -10/Subcaves | Continued accompanying wandering Federalists (5) 1759 | -10/Subcaves | A swath of the cavern ceiling suddenly collapsed 1769 | -10/Subcaves | Core integrity permanently improved by X0-1V1 (+200) 1829 | -10/Subcaves | Shifting Twisted Machinery released Hvy. Battle Rifle 1840 | -10/Subcaves | Shifting Twisted Machinery released Sub. Machine Gun 1987 | -10/Subcaves | Identified exit to Materials 2022 | -10/Subcaves | Ambushed by Subdweller buried in earth 2075 | -10/Subcaves | Learned location of Zion (-6) 2176 | -10/Subcaves | Disturbed a concealed Subdweller 2495 | -10/Subcaves | Discovered exit to Materials (range 9) 2713 | -10/Subcaves | A swath of the cavern ceiling suddenly collapsed 2824 | -10/Subcaves | X0-1V1 mutated your Propulsion slot to Power slot 3237 | -10/Subcaves | System corruption reached 10% 3578 | -10/Subcaves | System corruption reached 30% 3635 | -10/Subcaves | Sensors blinded by X0-1V1 3649 | -10/Subcaves | X0-1V1 sent hostile G-34 Mercenary (x5) 3687 | -10/Subcaves | Core integrity fell below 50% 3705 | -10/Subcaves | X0-1V1 sent hostile G-34 Mercenary (x5) 3717 | -10/Subcaves | Core integrity fell below 20% 3728 | -10/Subcaves | Destroyed by G-34 Mercenary with Small Laser Last Messages --------------- 03710_ Acquired 5 matter. 03711_ Riot Gun destroyed. 03711_ X0-1V1 ensures you are ready for glorious battle (+Maul). X0-1V1's Piety Tracker suddenly appears amidst shimmering waves of color. 03723_ Seismic Detector destroyed. 03723_ Sub. Monowheel destroyed. 03724_ System corrupted: Matter fused (-8). 03726_ Movement behavior is fully back under control. 03726_ G-34 Mercenary suffers critical hit (Smash). 03726_ Destroyed Aluminum Leg. 03726_ Destroyed Sml. Laser. 03726_ G-34 Mercenary system corrupted by crushing effect. 03727_ G-34 Mercenary system terminally corrupted. 03728_ X0-1V1 giggles madly! Map ----- +----------------------------------------------------+ | ??????????????????## ## ??# #?## | | ???????????????????# # ##?# #??## | | ???????????????????# # ## ### #???? | | ???????????????????# ### ##???? | | ???????????????????# #"" ##????? | | ???????????????????# ??#[ "" "#?????? | | ???????????????????###??## ## !"##?????? | | ?????????????????????????#### "|&#???????? | | ??????????????????????###### ""! #???????? | | ?????????????????????## ^## ######???????? | | ?????????????????????# ##???????????? | | ??????????????#####??# ^ ##??????????? | | ??????????????# #??# #??????????? | | ??????????????# #??## """"#??????????? | | ??????????????# ###?# """##??????????? | | ??????????????# ### ###???????????? | | ??????????????## ###????? ????? | | ???????????????# ### |%=### "" ???? | | ???????????????## ##?# * """ #???? | | ????????????????#### ##### "" #???? | | ???????????????????# ##### ###### " #???? | | ???????????????????###?## ##??????? ##???? | | ???????????????????????# ##??###??" #???? | | ??????????????????###??## #?## #??" #???? | | ????????????????###%##??## ##?# #? #???? | | ????????????????# *=@###?# ##### ## #####? | | ????????????????## %% ### ## ## | | ?????????????????#;;%gg ## # | | ?????????????????### gg # #? | | ??????????????????# ######### #??? | | ?????????????????## ##????## ##??? | | ????????????????## ##???## ##???? | | ????????????????# #???# #????? | | ????????????????# ! ##??# ## #????? | | ????????????????# ###### #### #????? | | ???????????????## #??# #??? #????? | | ??????????????## #?## #??? #????? | | ??????????????# ### #??? #????? | | ??????????????# ## #???# #???? | | ??????????????## #????## #???? | | ???????????????### #?????? #???? | | ?????????????????# #?###??###???? | | ?????????????????## ### ##???????? | | ??????????????????#### & ## ###?????? | | ????????????????????## # ##????? | | ???????????????????## # ### ##???? | | ???????????????????# ###! ### ##### | | ??????????????????##* ####?# ## | | ??????????????????# ##????## # | | ????????????????# #???## ####### | +----------------------------------------------------+ Best States ------------- Heat Dissipation 25 Energy Generation 20 Energy Capacity 350 Matter Stores 300 Matter Capacity 300 Sight Range 16 Terrain Scan Density 10 Evasion (%) 40 Recoil Reduction 2 Item Schematics ----------------- None Robot Schematics ------------------ None Fabricated ------------ Nothing Repaired ---------- Lgt. Treads | 62% | -10/Materials Studied --------- None Alien Tech Used ----------------- None Achievements -------------- Art Critic Strength In Numbers Challenges ------------ None Game ------ Seed VampiricQuantumMicrothruster Manual? 0 Play Time 00:40:34 Cumulative 49.1 hours Start 2026.07.04 @ 21:55:34 End 2026.07.04 @ 22:34:20 Sessions 1 Manual Loads 0 Difficulty Rogue Special Mode None Game No. 51 Rogue 51 Adventurer 0 Explorer 0 Win Type - Total 0 Types 0/0/0/0/0/0/0/0/0/0 Lore% 21 Gallery% 29 Achievement% 26 Wizard Run 0 Options --------- Layout 1 ASCII 0 Keyboard 1 Movement Numpad Keybinds 0 Fullscreen 1 Font 24/Smallcaps Map View 50x35 Zoom Use 0% Tactical HUD 1 Map Filters NONE Filters NONE Steam 1 RUN: 13ea3103-3a2e-49ac-908c-b677195b5ab8